Cogmind - Beta 13 @@@ ROGUE MODE // 2024.04.09 @ 01:00:10 Player: Bobby43rocks Result: Self-destructed Performance ------------- Evolutions (1) 500 Regions Visited (2) 400 Robots Destroyed (30) 150 Value Destroyed (704) 704 Prototype IDs (0) 0 Alien Tech Used (0) 0 Bonus (0) 0 TOTAL SCORE: 1754 Bonus ------- None Cogmind --------- Core Integrity 47/400 Matter 295/300 Energy 0/100 System Corruption 0% Temperature Cool (0) Movement Core (1400) Ox27 Location -9/Materials Parts ------- > --- POWER (1) -------- (None) > --- PROPULSION (2) --- (None) > --- UTILITY (4) ------ Huge Storage Unit Weight Redist. System Targeting Computer ECM Suite > --- WEAPON (2) ------- (None) > --- INVENTORY (25) --- Light Ion Engine Light Ion Engine Light Treads Aluminum Leg Aluminum Leg Small Storage Unit Large Storage Unit High-capacity Battery (250) High-capacity Matter Pod (200) Targeting Computer Targeting Computer Particle Gun Beam Cannon Light Assault Rifle Light Assault Rifle Autogun Peak State ------------ > --- POWER ------------ Light Ion Engine > --- PROPULSION ------- Light Treads Light Treads > --- UTILITY ---------- Huge Storage Unit Improved Terrain Scanner Targeting Computer ECM Suite > --- WEAPON ----------- Assault Rifle Light Assault Rifle > --- INVENTORY -------- Light Ion Engine Aluminum Leg Aluminum Leg Small Storage Unit Large Storage Unit High-capacity Battery High-capacity Matter Pod Beam Cannon Beam Cannon Assault Rifle Light Assault Rifle Grenade Launcher [Rating: 12] Favorites ----------- Power Light Ion Engine Engine Light Ion Engine Propulsion Light Treads Treads Light Treads Utility Huge Storage Unit Device ECM Suite Storage Huge Storage Unit Processor Targeting Computer Weapon Assault Rifle Energy Cannon Beam Cannon Ballistic Gun Assault Rifle Launcher Grenade Launcher Build | -11 -10 -9 ------- Run | Yrd Mat Mat Slots Evolved 2 | . . 2 Power . | . . . Propulsion . | . . . Utility 2 | . . 2 Weapon . | . . . Parts Attached 19 | 6 5 8 Power 2 | 1 . 1 Engine 2 | 1 . 1 Core . | . . . Reactor . | . . . Propulsion 3 | 2 . 1 Treads 3 | 2 . 1 Leg . | . . . Wheel . | . . . Hover . | . . . Flight . | . . . Utility 7 | 1 3 3 Device 3 | . . 3 Storage 3 | 1 2 . Processor 1 | . 1 . Hackware . | . . . Protection . | . . . Artifact . | . . . Weapon 7 | 2 2 3 Energy Gun . | . . . Energy Cannon 1 | . . 1 Ballistic Gun 4 | 2 1 1 Ballistic Cannon . | . . . Launcher 2 | . 1 1 Special Weapon . | . . . Impact Weapon . | . . . Slashing Weapon . | . . . Piercing Weapon . | . . . Special Melee Weapon . | . . . Unidentified Prototypes . | . . . Parts Lost 8 | . . 8 Power 1 | . . 1 Propulsion 3 | . . 3 Utility 1 | . . 1 Weapon 3 | . . 3 Highest Loss Streak 4 | . . 4 To Critical Strikes . | . . . Average Slot Usage (%) 98 | . 99 95 Engine 12 | . 14 10 Treads 24 | . 28 18 Device 8 | . . 21 Storage 17 | . 22 11 Processor 7 | . 5 11 Energy Cannon 1 | . . 4 Ballistic Gun 22 | . 25 17 Launcher 1 | . 2 . Naked Turns . | . . . Heaviest Build 106 | 12 106 92 Greatest Support 46 | 40 40 46 Greatest Overweight (x) 27 | 1 2 27 Average Overweight (x) 1 | . 1 2 Largest Inventory Capacity 25 | 8 25 25 Average Capacity 23 | 7 22 25 Most Carried 16 | 4 14 16 Average Carried 12 | 1 11 14 Final Capacity 25 | 8 25 25 Final Carried 16 | 4 14 16 Class Distribution -------------------- 81% | Mutant 18% | Scavenger-Mutant Dominant Class ---------------- Mutant | -10/Materials Scavenger-Mutant | -9/Materials Resources | -11 -10 -9 ----------- Run | Yrd Mat Mat Matter Collected 796 | 125 376 295 Remotely . | . . . Salvage Created 879 | . 479 400 Parts 56 | . 37 19 Haulers Intercepted 3 | . . 3 Recyclers Shooed 1 | . 1 . Parts Field Recycled . | . . . Retrieved Matter . | . . . Parts Self-Destructed . | . . . Prevented . | . . . Kills | -11 -10 -9 ------- Run | Yrd Mat Mat Combat Hostiles Destroyed 21 | . 16 5 Melee 1 | . 1 . Guns 12 | . 9 3 Cannons 2 | . . 2 AOE 6 | . 6 . Classes Destroyed 9 | . 6 3 Worker 1 | . . 1 Builder 2 | . 2 . Tunneler 1 | . 1 . Hauler 3 | . . 3 Recycler 1 | . 1 . Operator 1 | . 1 . Swarmer 6 | . 6 . Grunt 13 | . 10 3 Sentry 2 | . . 2 Best Kill Streak 5 | . 5 2 Combat Bots Only 4 | . 4 2 Max Kills in Single Turn 3 | . 3 1 Gunslinging . | . . . Exploded 2 | . 2 . Melee 1 | . 1 . Uniques/NPCs Destroyed . | . . . Combat | -11 -10 -9 -------- Run | Yrd Mat Mat Hostile Shots Fired 152 | . 71 81 Missed 45 | . 27 18 Damage Taken 1524 | . 483 1041 Core 447 | . 94 353 Absorbed by Shields . | . . . Core Remaining (%) 81 | 100 62 . Volleys Fired 69 | . 37 32 Largest 2 | . 2 2 Hottest 90 | . 50 90 Shots Fired 133 | . 70 63 Gun 111 | . 60 51 Cannon 11 | . . 11 Launcher 11 | . 10 1 Special . | . . . Kinetic 111 | . 60 51 Thermal 11 | . . 11 Explosive 11 | . 10 1 Electromagnetic . | . . . Robot Hit Streak 18 | . 7 18 Robot Miss Streak 3 | . 3 2 Penetration Max . | . . . Secondary Targets 1 | . 1 . Max Gunslinging Chain 1 | . 1 . Shots Hit Robots 92 | . 46 46 Core Hits 56 | . 34 22 Critical Kills 2 | . 2 . Critical Parts Destroyed . | . . . Critical Strikes 2 | . 2 . Destroy 2 | . 2 . Melee Attacks . | . . . Impact . | . . . Slashing . | . . . Piercing . | . . . Sneak Attacks . | . . . Combat Hostiles . | . . . Follow-up Attacks . | . . . Damage Inflicted 2000 | . 1303 697 Guns 827 | . 435 392 Cannons 195 | . . 195 Explosions 940 | . 841 99 Melee . | . . . Ramming 38 | . 27 11 Kinetic 827 | . 435 392 Thermal 195 | . . 195 Explosive 940 | . 841 99 Electromagnetic . | . . . Impact . | . . . Slashing . | . . . Piercing . | . . . Highest Corruption . | . . . Average Corruption . | . . . Corruption Purged . | . . . Corruption Blocked . | . . . Overload Shots . | . . . Overflow Damage 78 | . 78 . Projectiles . | . . . Explosions 78 | . 78 . Melee . | . . . Knockbacks 1 | . 1 . Impact 1 | . 1 . Kinetic . | . . . Secondary . | . . . Self-Inflicted Damage 40 | . . 40 Shots 1 | . . 1 Rammed 5 | . 2 3 Targets Rammed 6 | . 3 3 Kicked . | . . . Crushed 1 | . 1 . Highest Temperature 135 | . 18 135 Average Temperature 28 | . 5 39 Received Heat Transfer 642 | . 231 411 Siege Activations . | . . . Robots Corrupted . | . . . Combat Hostiles . | . . . Parts Fried . | . . . Impact Corruptions . | . . . Robots Melted . | . . . Combat Hostiles . | . . . Parts Melted 2 | . . 2 Heat Transferred 407 | . . 407 Parts Sabotaged . | . . . Parts Stolen . | . . . Parts Stripped . | . . . Power Chain Reactions . | . . . Alert | -11 -10 -9 ------- Run | Yrd Mat Mat Peak Influence 364 | . 364 80 Initial . | . . . Average 70 | . 101 27 Maximum Alert Level 1 | . 1 . Low Security (%) 89 | 100 81 100 Level 1 10 | . 18 . Level 2 . | . . . Level 3 . | . . . Level 4 . | . . . Level 5 . | . . . High Security . | . . . Max Security . | . . . Squads Dispatched 6 | . 5 1 Investigation 3 | . 3 . Extermination . | . . . Reinforcement 3 | . 2 1 Assault . | . . . Garrison . | . . . Intercept . | . . . Searches Triggered . | . . . Construction Impeded . | . . . Haulers Reinforced . | . . . Active Scanning Responses . | . . . Cargo Convoy Interrupts . | . . . Stealth | -11 -10 -9 --------- Run | Yrd Mat Mat Distress Signals 1 | . . 1 Communications Jammed . | . . . Distress Signals . | . . . Times Spotted 37 | . 24 13 Peak Tracking Total 5 | . 4 5 Tactical Retreats 2 | . . 2 Traps | -11 -10 -9 ------- Run | Yrd Mat Mat Traps Triggered 1 | . 1 . Indirectly . | . . . Trap Hack Attempts . | . . . Triggered . | . . . Disarmed . | . . . Reprogrammed . | . . . Reused . | . . . Traps Extracted . | . . . Installed . | . . . Triggered . | . . . Machines | -11 -10 -9 ---------- Run | Yrd Mat Mat Machines Disabled 4 | . 3 1 Max in Single Turn 2 | . 2 1 Machines Repaired . | . . . Machines Dismantled . | . . . Machines Sabotaged . | . . . Overloaded Fab Kills . | . . . Hacking | -11 -10 -9 --------- Run | Yrd Mat Mat Machines Accessed 6 | . 4 2 Terminals 4 | . 2 2 Fabricators . | . . . Repair Stations 1 | . 1 . Recycling Units 1 | . 1 . Scanalyzers . | . . . Garrison Access . | . . . Total Hacks 16 | . 12 4 Successful 9 | . 8 1 Failed 7 | . 4 3 Catastrophic 4 | . 3 1 Database Lockouts . | . . . Manual . | . . . Terminals 10 | . 6 4 Fabricators . | . . . Repair Stations 1 | . 1 . Recycling Units 5 | . 5 . Scanalyzers . | . . . Garrison Access . | . . . Terminal Hacks 5 | . 4 1 Branch Access Points 1 | . 1 . Dispatch Records 1 | . 1 . Registered Components 1 | . 1 . Zone Layout 2 | . 1 1 Fabricator Hacks . | . . . Repair Station Hacks . | . . . Recycling Unit Hacks 4 | . 4 . Recycle Component 2 | . 2 . Process 1 | . 1 . Retrieve Matter 1 | . 1 . Scanalyzer . | . . . Garrison Access Hacks . | . . . Unauthorized Hacks . | . . . Terminals . | . . . Fabricators . | . . . Repair Stations . | . . . Recycling Units . | . . . Scanalyzers . | . . . Garrison Access . | . . . Data Cores Recovered . | . . . Used . | . . . Hacking Detections 6 | . 4 2 Full Trace Events 3 | . 2 1 Feedback Events . | . . . Feedback Blocked . | . . . Robot Schematics Acquired . | . . . Robots Built . | . . . Authchips . | . . . Time . | . . . Total Robot Build Rating . | . . . Part Schematics Acquired . | . . . Parts Built . | . . . Authchips . | . . . Time . | . . . Total Part Build Rating . | . . . Parts Repaired . | . . . Time . | . . . Parts Recycled 2 | . 2 . Recycled Matter 81 | . 81 . Retrieved Matter 81 | . 81 . Retrieved Components . | . . . Parts Scanalyzed . | . . . Part Schematics Acquired . | . . . Parts Damaged . | . . . Bothacking | -11 -10 -9 ------------ Run | Yrd Mat Mat Used RIF Installer . | . . . Robots Hacked . | . . . Non-combat . | . . . Combat . | . . . Robot Hacks Applied . | . . . Relay Couplers Released . | . . . Fabnet Peak Effective % . | . . . Robots Rewired . | . . . Allies Hacked . | . . . Hacks Repelled . | . . . Allies | -11 -10 -9 -------- Run | Yrd Mat Mat Total Allies . | . . . Largest Group . | . . . Highest-Rated Group . | . . . Highest-Rated Ally . | . . . Total Orders . | . . . Ally Attacks . | . . . Total Damage . | . . . Kills . | . . . Allies Corrupted . | . . . Allies Melted . | . . . Intel | -11 -10 -9 ------- Run | Yrd Mat Mat Robot Analysis Total . | . . . Derelict Logs Recovered . | . . . Drone Launches . | . . . Drone Recoveries . | . . . Exploration | -11 -10 -9 ------------- Run | Yrd Mat Mat Turns Passed 3364 | 107 2007 1250 Spaces Moved 1121 | 63 714 344 Core 7 | 6 . 1 Treads 1114 | 57 714 343 Legs . | . . . Wheels . | . . . Hover . | . . . Flight . | . . . Fastest Speed 50 | 50 160 240 Average Speed 277 | 151 262 329 Slowest Speed 1400 | 160 320 1400 Overloaded Moves . | . . . Propulsion Burnouts . | . . . Robots Hopped . | . . . Cave-ins Triggered . | . . . Exploration Rate (%) 28 | 4 58 24 Regions Visited 2 Branch Regions . Pre-discovered Areas . | . . . Known Exits Taken . | . . . Unknown Exits Taken 2 | 1 1 . Scrap Searched . | . . . Spaces Dug . | . . . Terrain Destroyed 74 | . 71 3 Melee . | . . . Projectile . | . . . AOE 74 | . 71 3 Terrain Rammed . | . . . Walls Destroyed . | . . . Machines Disabled . | . . . Actions | -11 -10 -9 --------- Run | Yrd Mat Mat Total 1239 | 72 773 394 Wait 5 | . 4 1 Move 1119 | 62 713 344 Hop . | . . . Pick Up 21 | 4 11 6 Fast Attach 8 | 6 1 1 Attach 5 | . . 5 Detach . | . . . Swap 6 | . 4 2 Drop . | . . . Fire 69 | . 37 32 Melee . | . . . Ram . | . . . Kick . | . . . Crush 6 | . 3 3 Escape Stasis . | . . . Rewire . | . . . Trap . | . . . Miscellaneous . | . . . Route ------- -11/Scrapyard -10/Materials (discovered 3 exits: *Mat / *Min / [*Sub]) -9/Materials (discovered 1 exit: [*Mat]) History --------- Turn | Location | Event 8 | -11/Scrapyard | Discovered new exit (range 15) 108 | -11/Scrapyard | Entered Materials 311 | -10/Materials | Build established: Mutant 499 | -10/Materials | Discovered new exit (range 15) 1205 | -10/Materials | Discovered new exit (range 9) 1590 | -10/Materials | Identified exit to Mines 1928 | -10/Materials | Discovered new exit (range 5) 2115 | -10/Materials | Entered another Materials area 2115 | -9/Materials | Evolved 2 slots: Utility x2 2996 | -9/Materials | Build established: Scavenger-Mutant 3232 | -9/Materials | Discovered new exit (range 14) 3355 | -9/Materials | Core integrity fell below 50% 3362 | -9/Materials | Core integrity fell below 20% 3365 | -9/Materials | Self-destructed Last Messages --------------- Critical hit (Burn: +37). K-01 Serf collects debris. Atomic Centrifuge disabled. K-01 Serf destroyed. Grenade Launcher severed. Ion Engine destroyed. U-05 Engineer lays Concrete. Beam Cannon destroyed. Lgt. Treads destroyed. U-05 Engineer lays Concrete. R-06 Scavenger collects Lgt. Ion Engine. U-05 Engineer builds a Wall. U-05 Engineer lays Concrete. U-05 Engineer builds a Door. R-06 Scavenger collects Med. Matter Pod. U-05 Engineer lays Concrete. U-05 Engineer builds a Wall. U-05 Engineer lays Concrete. M-13 Machinist repairs Y-45 Defender. U-05 Engineer lays Concrete. Map ----- +----------------------------------------------------+ | # ##??#?????## # # # | | # #???#??#???# # # """ """ # | | ###########????############## # """ """ # | | #### ?? ??? ? ? # ## + """ """ # | | ?#??????? ? ? ??? # """ """ ## # # | | ???? ? ? ???? ??? # """ """ ## ############# | | ????????????" ??? # """ """ # # """"""" #? | | ???????""??"????? # + # """"""" #? | | ?????????????????" # # T + """"""" #? | | ?????????????????" # # # """"""" #? | | ?????????????????### """T""" ## ## """"""" #? | | ???????????????????############ ## #? | | ?????????????????############## ## #? | | ???????????????? ^ ## #? | | ???? ??????????? ############? | | ?????????????????######+####### #???????????? | | ???????????????????# #??# #???????????? | | ???????????????????# """#??# #???????????? | | ???????????????????# """#??# #???????????? | | ???????????????????# """#??#% #???????????? | | ???????????????????# #??#% #???????????? | | ???????????????????##########?#% #???????????? | | ?????????????????####?# ### ###?????????? | | ????????????????? ### r #?????????? | | ?????????????????????# = < #?????????? | | ??????????????????????# u@ #?????????? | | ??????????????????????#rYlg%###+####?????????? | | ??????????????????????###m###????????????????? | | ?????????????????????#! u ] #??????????????? | | ?????????????????????# " #??????????????? | | ?????????????????????# % " #??????????????? | | ?????????????????????#% """ #??????????????? | | ?????????????????????+" #??????????????? | | ???????????????????? # """ #??????????????? | | ??????????????????? # """ #??????????????? | | ??????????????????##?# """ #??????????????? | | ?????????????????????# ???#??????????????? | | ?????????????????????######??????????????????? | | ?????????????????????????????????????????????? | | ?????????????????????????????????????????????? | | ?????????????????????????????????????????????? | | ?????????????????????????????????????????????? | | ?????????????????????????????????????????????? | | ?????????????????????????????????????????????? | | ?????????????????????????????????????????????? | | ?????????????????????????????????????????????? | | ?????????????????????????????????????????????? | | ?????????????????????????????????????????????? | | ?????????????????????????????????????????????? | | ?????????????????????????????????????????????? | +----------------------------------------------------+ Best States ------------- Heat Dissipation 28 Energy Generation 10 Energy Capacity 250 Matter Stores 300 Matter Capacity 300 Sight Range 16 Terrain Scan Range 16 Terrain Scan Density 10 ECM Strength 1 Additional Mass Support 6 Evasion (%) 40 Targeting Accuracy 5 Recoil Reduction 2 Item Schematics ----------------- None Robot Schematics ------------------ None Fabricated ------------ Nothing Alien Tech Used ----------------- None Achievements -------------- None Challenges ------------ None Game ------ Seed WeldingFrostExpander Manual? 0 Play Time 00:12:04 Cumulative 6.7 hours Start 2024.04.07 @ 15:08:09 End 2024.04.09 @ 01:00:10 Sessions 3 Manual Loads 0 Difficulty Rogue Special Mode None Game No. 20 Rogue 20 Adventurer 0 Explorer 0 Win Type - Total 0 Types 0/0/0/0/0/0/0/0/0 Lore% 3 Gallery% 13 Achievement% 10 Wizard Run 0 Options --------- Layout 1 ASCII 0 Keyboard 1 Movement Arrows Keybinds 0 Fullscreen 2 Font 24/Tallcaps Map View 50x35 Zoom Use 0% Tactical HUD 0 Map Filters NONE Filters NONE Steam 1 RUN: 56b081f8-c109-4c9c-bfc4-eb17bbc2191a